fUST/lending_fUST_20250510
["ID","MTS","AMOUNT","RATE_DAILY","PERIOD"]
[360514583,1746822644362,-151.0,0.00010673,2]
[360514584,1746822644371,-151.0,0.00010673,2]
[360514585,1746822644380,-151.0,0.00010673,2]
[360514586,1746822644390,-151.0,0.00010673,2]
[360514587,1746822644400,-151.0,0.00010673,2]
[360514588,1746822644410,-151.0,0.00010673,2]
[360514589,1746822644419,-151.0,0.00010673,2]
[360514590,1746822644429,-235.277339,0.00010673,2]
[360514591,1746822644440,-235.277339,0.00010673,2]
[360514592,1746822644449,-151.0,0.00010673,2]
[360514593,1746822644458,-151.0,0.00010673,2]
[360514594,1746822644469,-151.0,0.00010673,2]
[360514595,1746822644478,-151.0,0.00010673,2]
[360514596,1746822644487,-151.0,0.00010673,2]
[360514597,1746822644496,-54.4719327,0.00010673,2]
[360514598,1746822644513,-96.5280673,0.00010673,2]
[360514599,1746822644522,-151.0,0.00010673,2]
[360514600,1746822644531,-6.21383003,0.00010673,2]
[360514605,1746822647044,-144.78616997,0.00010673,2]
[360514606,1746822647054,-151.0,0.00010673,2]
[360514607,1746822647065,-255.055233,0.00010673,2]
[360514608,1746822647074,-151.0,0.00010673,2]
[360514609,1746822647084,-261.550082,0.00010673,2]
[360514610,1746822647094,-261.550082,0.00010673,2]
[360514612,1746822647103,-195.473649,0.00010673,2]
[360514613,1746822647112,-151.0,0.00010673,2]
[360514614,1746822647122,-431.751272,0.00010673,2]
[360514615,1746822647131,-431.751272,0.00010673,2]
[360514616,1746822647142,-151.0,0.00010673,2]
[360514617,1746822647153,-151.0,0.00010673,2]
[360514618,1746822647162,-325.13586,0.00010673,2]
[360514619,1746822647172,-325.13586,0.00010673,2]
[360514620,1746822647183,-325.13586,0.00010673,2]
[360514621,1746822647194,-325.13586,0.00010673,2]
[360514622,1746822647204,-151.0,0.00010673,2]
[360514623,1746822647216,-151.0,0.00010673,2]
[360514624,1746822647225,-151.0,0.00010673,2]
[360514625,1746822647234,-151.0,0.00010673,2]
[360514626,1746822647243,-176.627631,0.00010673,2]
[360514627,1746822647252,-181.062655,0.00010673,2]
[360514628,1746822647262,-181.062655,0.00010673,2]
[360514629,1746822647275,-181.062655,0.00010673,2]
[360514630,1746822647284,-181.062655,0.00010673,2]
[360514631,1746822647294,-152.774598,0.00010673,2]
[360514632,1746822647303,-2279.527931,0.00010673,2]
[360514633,1746822647312,-2279.527931,0.00010673,2]
[360514634,1746822647322,-2279.527931,0.00010673,2]
[360514635,1746822647331,-2279.52793837,0.00010673,2]
[360514636,1746822647340,-151.0,0.00010673,2]
[360514637,1746822647351,-151.0,0.00010673,2]
[360514638,1746822647360,-1165.0,0.00010687,3]
[360514639,1746822647369,-151.0,0.00010687,2]
[360514640,1746822647378,-151.0,0.00010687,2]
[360514641,1746822647387,-151.0,0.0001069,2]
[360514642,1746822647396,-151.0,0.0001069,2]
[360514643,1746822647405,-500.0,0.00010694,2]
[360514644,1746822647414,-2200.0,0.00010694,2]
[360514645,1746822647424,-151.0,0.00010694,2]
[360514646,1746822647435,-151.0,0.00010694,2]
[360514647,1746822647446,-151.0,0.00010694,2]
[360514648,1746822647455,-151.0,0.00010694,2]
[360514649,1746822647464,-151.0,0.00010694,2]
[360514650,1746822647473,-151.0,0.00010694,2]
[360514651,1746822647482,-151.0,0.00010694,2]
[360514652,1746822647491,-151.0,0.00010694,2]
[360514653,1746822647501,-151.0,0.00010694,2]
[360514654,1746822647510,-151.0,0.00010694,2]
[360514655,1746822647519,-151.0,0.00010694,2]
[360514656,1746822647528,-151.0,0.00010694,2]
[360514657,1746822647537,-151.0,0.00010694,2]
[360514658,1746822647547,-176.92923,0.00010694,2]
[360514659,1746822647556,-151.0,0.00010694,2]
[360514660,1746822647566,-158.592897,0.00010694,2]
[360514661,1746822647575,-235.277339,0.00010694,2]
[360514662,1746822647584,-235.277339,0.00010694,2]
[360514663,1746822647595,-235.277339,0.00010694,2]
[360514664,1746822647604,-235.277339,0.00010694,2]
[360514665,1746822647613,-228.984425,0.00010694,2]
[360514666,1746822647622,-151.0,0.00010694,2]
[360514667,1746822647631,-151.0,0.00010694,2]
[360514668,1746822647641,-151.0,0.00010694,2]
[360514669,1746822647651,-151.0,0.00010694,2]
[360514670,1746822647661,-151.0,0.00010694,2]
[360514671,1746822647670,-151.0,0.00010694,2]
[360514672,1746822647680,-151.0,0.00010694,2]
[360514673,1746822647786,-151.0,0.00010694,2]
[360514674,1746822647797,-151.0,0.00010694,2]
[360514675,1746822647807,-234.368266,0.00010694,2]
[360514676,1746822647817,-378.890504,0.00010694,2]
[360514677,1746822647826,-378.890504,0.00010694,2]
[360514678,1746822647836,-378.890504,0.00010694,2]
[360514679,1746822647846,-151.0,0.00010694,2]
[360514680,1746822647856,-151.0,0.00010694,2]
[360514681,1746822647866,-619.686126,0.00010694,2]
[360514682,1746822647875,-619.686126,0.00010694,2]
[360514683,1746822647885,-619.686126,0.00010694,2]
[360514684,1746822647895,-619.686126,0.00010694,2]
[360514685,1746822647904,-619.686126,0.00010694,2]
[360514686,1746822647914,-619.686126,0.00010694,2]
[360514687,1746822647924,-193.25442,0.00010694,2]
[360514688,1746822647933,-193.25442,0.00010694,2]
[360514689,1746822647943,-151.0,0.00010694,2]
[360514690,1746822647953,-193.25442,0.00010694,2]
[360514691,1746822647963,-193.25442,0.00010694,2]
[360514692,1746822647973,-193.25442,0.00010694,2]
[360514693,1746822647983,-193.25442,0.00010694,2]
[360514694,1746822647993,-261.550082,0.00010694,2]
[360514695,1746822648002,-261.550082,0.00010694,2]
[360514696,1746822648012,-261.550082,0.00010694,2]
[360514697,1746822648022,-261.550082,0.00010694,2]
[360514698,1746822648032,-261.550082,0.00010694,2]
[360514699,1746822648042,-261.550072,0.00010694,2]
[360514700,1746822648051,-151.0,0.00010694,2]
[360514701,1746822648061,-151.0,0.00010694,2]
[360514702,1746822648071,-151.0,0.00010694,2]
[360514703,1746822648081,-431.751272,0.00010694,2]
[360514704,1746822648090,-431.751272,0.00010694,2]
[360514705,1746822648102,-431.751272,0.00010694,2]
[360514706,1746822648113,-431.751272,0.00010694,2]
[360514707,1746822648122,-431.751272,0.00010694,2]
[360514708,1746822648132,-431.751272,0.00010694,2]
[360514709,1746822648143,-151.0,0.00010694,2]
[360514710,1746822648153,-151.0,0.00010694,2]
[360514711,1746822648163,-151.0,0.00010694,2]
[360514712,1746822648173,-151.0,0.00010694,2]
[360514713,1746822648184,-151.0,0.00010694,2]
[360514714,1746822648194,-325.13586,0.00010694,2]
[360514715,1746822648203,-325.13586,0.00010694,2]
[360514716,1746822648214,-325.13586,0.00010694,2]
[360514717,1746822648224,-325.135855,0.00010694,2]
[360514718,1746822648234,-151.0,0.00010694,2]
[360514719,1746822648244,-151.0,0.00010694,2]
[360514720,1746822648254,-151.0,0.00010694,2]
[360514721,1746822648264,-151.0,0.00010694,2]
[360514722,1746822648276,-218.765112,0.00010694,2]
[360514723,1746822648286,-151.0,0.00010694,2]
[360514724,1746822648296,-151.0,0.00010694,2]
[360514725,1746822648306,-181.062655,0.00010694,2]
[360514726,1746822648318,-181.06266,0.00010694,2]
[360514727,1746822648328,-151.0,0.00010694,2]
[360514728,1746822648337,-151.0,0.00010694,2]
[360514729,1746822648348,-86119.11272374,0.00010694,2]
[360514767,1746823831880,-158.022304,9.411e-05,2]
[360514768,1746823831891,-453.465552,9.643e-05,2]
[360514798,1746823840181,-1000.9806409,9.643e-05,2]
[360514800,1746823840237,-1341.02937639,9.643e-05,2]
[360514841,1746823845886,-2816.06528271,9.643e-05,2]
[360514842,1746823845895,-1500.0,9.972e-05,2]
[360514843,1746823845905,-155.377653,0.00010266,2]
[360514844,1746823845915,-300.0,0.00010557,2]
[360514845,1746823845926,-842.28079861,0.00010558,2]
[360514846,1746823845935,-12617.32522221,0.00010558,2]
[360514847,1746823845945,-160.0,0.00010558,2]
[360514848,1746823845954,-160.0,0.00010558,2]
[360514849,1746823845964,-160.0,0.00010558,2]
[360514850,1746823845975,-160.0,0.00010558,2]
[360514851,1746823845984,-160.0,0.00010558,2]
[360514852,1746823845994,-160.0,0.00010558,2]
[360514853,1746823846004,-422.10928827,0.00010558,2]
[360514854,1746823846016,-160.0,0.00010558,2]
[360514855,1746823846027,-212.1195172,0.00010558,2]
[360514856,1746823846038,-160.0,0.00010558,2]
[360514857,1746823846049,-160.0,0.00010558,2]
[360514858,1746823846060,-314.10967717,0.00010558,2]
[360514859,1746823846070,-151.0,0.000106,2]
[360514860,1746823846081,-151.0,0.000106,2]
[360514861,1746823846093,-151.0,0.000106,2]
[360514862,1746823846111,-151.0,0.000106,2]
[360514863,1746823846123,-151.0,0.000106,2]
[360514864,1746823846133,-151.0,0.000106,2]
[360514865,1746823846146,-151.0,0.000106,2]
[360514866,1746823846260,-151.0,0.000106,2]
[360514867,1746823846274,-151.0,0.000106,2]
[360514868,1746823846283,-151.0,0.000106,2]
[360514869,1746823846294,-164.694137,0.000106,2]
[360514870,1746823846304,-164.694137,0.000106,2]
[360514871,1746823846314,-164.694137,0.000106,2]
[360514872,1746823846324,-164.694137,0.000106,2]
[360514873,1746823846334,-151.0,0.000106,2]
[360514874,1746823846345,-151.0,0.000106,2]
[360514875,1746823846355,-151.0,0.000106,2]
[360514876,1746823846365,-151.0,0.000106,2]
[360514877,1746823846375,-433.780288,0.000106,2]
[360514878,1746823846384,-433.780288,0.000106,2]
[360514879,1746823846394,-433.780288,0.000106,2]
[360514880,1746823846404,-433.780288,0.000106,2]
[360514881,1746823846418,-433.780288,0.000106,2]
[360514882,1746823846434,-433.780288,0.000106,2]
[360514883,1746823846445,-151.0,0.000106,2]
[360514884,1746823846459,-151.0,0.000106,2]
[360514885,1746823846472,-151.0,0.000106,2]
[360514886,1746823846482,-151.0,0.000106,2]
[360514887,1746823846492,-151.0,0.000106,2]
[360514888,1746823846503,-151.0,0.000106,2]
[360514889,1746823846514,-151.0,0.000106,2]
[360514890,1746823846524,-151.0,0.000106,2]
[360514891,1746823846533,-151.0,0.000106,2]
[360514892,1746823846543,-151.0,0.000106,2]
[360514893,1746823846552,-245.084646,0.000106,2]
[360514894,1746823846561,-6739.95337023,0.000106,2]
[360514961,1746825032040,-1514.96609989,9.44e-05,2]
[360514964,1746825032052,-2369.73086479,9.44e-05,2]
[360514970,1746825032101,-1115.30303532,9.44e-05,2]
[360514972,1746825032113,-300.0,9.535e-05,2]
[360514974,1746825032122,-995.01000006,9.536e-05,2]
[360514976,1746825032132,-500.0,9.536e-05,2]
[360514978,1746825032141,-310.63987525,9.536e-05,2]
[360514980,1746825032150,-500.0,9.536e-05,2]
[360514982,1746825032159,-397.60439674,9.536e-05,2]
[360514985,1746825032175,-102.39560326,9.536e-05,2]
[360514986,1746825032184,-500.0,9.536e-05,2]
[360514988,1746825032194,-461.33179573,9.536e-05,2]
[360514990,1746825032203,-173.88563007,9.536e-05,2]
[360515021,1746825037956,-326.71480302,9.535e-05,2]
[360515022,1746825037966,-297.4901131,9.536e-05,2]
[360515173,1746825046267,-28.62425683,9.536e-05,2]
[360515174,1746825046278,-500.0,9.536e-05,2]
[360515175,1746825046288,-500.0,9.536e-05,2]
[360515176,1746825046297,-500.0,9.536e-05,2]
[360515177,1746825046306,-500.0,9.536e-05,2]
[360515178,1746825046316,-500.0,9.536e-05,2]
[360515179,1746825046325,-500.0,9.536e-05,2]
[360515180,1746825046335,-500.0,9.536e-05,2]
[360515181,1746825046344,-500.0,9.536e-05,2]
[360515183,1746825046459,-500.0,9.536e-05,2]
[360515184,1746825046469,-500.0,9.536e-05,2]
[360515185,1746825046479,-500.0,9.536e-05,2]
[360515186,1746825046488,-500.0,9.536e-05,2]
[360515187,1746825046498,-500.0,9.536e-05,2]
[360515188,1746825046508,-500.0,9.536e-05,2]
[360515189,1746825046517,-500.0,9.536e-05,2]
[360515190,1746825046527,-500.0,9.536e-05,2]
[360515191,1746825046536,-500.0,9.536e-05,2]
[360515192,1746825046545,-500.0,9.536e-05,2]
[360515193,1746825046554,-433.67574317,9.536e-05,2]
[360515196,1746825528898,-151.0,8.9e-05,2]
[360515199,1746825913241,-300.0,8.09e-05,2]
[360515200,1746825913263,-1147.0,8.09e-05,2]
[360515201,1746825913285,-24823.0,8.091e-05,2]
[360515363,1746826246200,-77.0,8.091e-05,2]
[360515364,1746826246209,-353.20474738,8.981e-05,2]
[360515365,1746826246219,-500.0,8.982e-05,2]
[360515366,1746826246228,-164.60555567,8.982e-05,2]
[360515367,1746826246237,-500.0,8.982e-05,2]
[360515368,1746826246246,-500.0,8.982e-05,2]
[360515369,1746826246255,-500.0,8.982e-05,2]
[360515370,1746826246265,-500.0,8.982e-05,2]
[360515371,1746826246274,-500.0,8.982e-05,2]
[360515372,1746826246283,-500.0,8.982e-05,2]
[360515373,1746826246292,-500.0,8.982e-05,2]
[360515374,1746826246301,-500.0,8.982e-05,2]
[360515375,1746826246310,-223.1285432,8.982e-05,2]
[360515377,1746826246337,-276.8714568,8.982e-05,2]
[360515378,1746826246347,-500.0,8.982e-05,2]
[360515379,1746826246356,-500.0,8.982e-05,2]
[360515380,1746826246365,-500.0,8.982e-05,2]
[360515381,1746826246375,-500.0,8.982e-05,2]
[360515382,1746826246384,-500.0,8.982e-05,2]
[360515383,1746826246394,-500.0,8.982e-05,2]
[360515384,1746826246403,-500.0,8.982e-05,2]
[360515385,1746826246412,-500.0,8.982e-05,2]
[360515386,1746826246422,-500.0,8.982e-05,2]
[360515387,1746826246431,-500.0,8.982e-05,2]
[360515388,1746826246440,-500.0,8.982e-05,2]
[360515389,1746826246449,-500.0,8.982e-05,2]
[360515390,1746826246458,-500.0,8.982e-05,2]
[360515391,1746826246467,-500.0,8.982e-05,2]
[360515392,1746826246476,-500.0,8.982e-05,2]
[360515393,1746826246486,-500.0,8.982e-05,2]
[360515394,1746826246494,-500.0,8.982e-05,2]
[360515395,1746826246504,-500.0,8.982e-05,2]
[360515396,1746826246513,-500.0,8.982e-05,2]
[360515397,1746826246523,-500.0,8.982e-05,2]
[360515398,1746826246532,-500.0,8.982e-05,2]
[360515399,1746826246541,-500.0,8.982e-05,2]
[360515400,1746826246551,-500.0,8.982e-05,2]
[360515401,1746826246560,-500.0,8.982e-05,2]
[360515402,1746826246569,-228.70036212,8.983e-05,2]
[360515403,1746826246578,-300.0,8.983e-05,2]
[360515404,1746826246587,-1200.0,8.983e-05,2]
[360515405,1746826246600,-3018.37577536,8.984e-05,2]
[360515406,1746826246610,-10000.0,8.99e-05,2]
[360515407,1746826246619,-151.0,8.99e-05,2]
[360515408,1746826246628,-151.0,8.99e-05,2]
[360515409,1746826246639,-1007.13549549,9.245e-05,2]
[360515410,1746826246648,-151.0,9.246e-05,2]
[360515411,1746826246657,-151.0,9.246e-05,2]
[360515412,1746826246667,-155.346914,9.246e-05,2]
[360515413,1746826246677,-151.0,9.246e-05,2]
[360515414,1746826246687,-151.0,9.246e-05,2]
[360515415,1746826246696,-159.855698,9.246e-05,2]
[360515416,1746826246705,-151.0,9.246e-05,2]
[360515417,1746826246715,-151.0,9.246e-05,2]
[360515418,1746826246724,-151.0,9.246e-05,2]
[360515419,1746826246733,-151.0,9.246e-05,2]
[360515420,1746826246742,-151.0,9.246e-05,2]
[360515421,1746826246751,-151.0,9.246e-05,2]
[360515422,1746826246761,-34017.3866717,9.246e-05,2]
[360515423,1746826246770,-376.51496647,9.346e-05,2]
[360515424,1746826246780,-652.39360406,9.79e-05,2]
[360515425,1746826246789,-209.0883092,9.878e-05,2]
[360515426,1746826246799,-175.5563282,9.878e-05,2]
[360515427,1746826246808,-153.0,9.878e-05,2]
[360515428,1746826246817,-175.5563282,9.878e-05,2]
[360515429,1746826246827,-153.0,9.878e-05,2]
[360515430,1746826246837,-153.0,9.88e-05,2]
[360515431,1746826246846,-175.5563282,9.88e-05,2]
[360515432,1746826246855,-420.0,9.881e-05,2]
[360515433,1746826246864,-568.6660754,9.978e-05,2]
[360515434,1746826246874,-157.8025287,9.978e-05,2]
[360515435,1746826246883,-153.0,9.978e-05,2]
[360515436,1746826246892,-157.8025287,9.978e-05,2]
[360515437,1746826246902,-568.6660754,9.978e-05,2]
[360515438,1746826246913,-153.0,9.979e-05,2]
[360515439,1746826246923,-153.0,9.979e-05,2]
[360515440,1746826246934,-652.39360406,0.00010036,2]
[360515441,1746826246943,-153.0,0.00010078,2]
[360515442,1746826246953,-153.0,0.00010078,2]
[360515443,1746826246962,-153.0,0.00010078,2]
[360515444,1746826246972,-204.19797102,0.00010129,2]
[360515445,1746826246982,-652.39360406,0.0001024,2]
[360515446,1746826246992,-404.0,0.00010407,2]
[360515447,1746826247001,-151.0,0.000105,2]
[360515448,1746826247011,-151.0,0.000105,2]
[360515449,1746826247021,-151.0,0.000105,2]
[360515450,1746826247030,-152.089108,0.000105,2]
[360515451,1746826247040,-151.0,0.000105,2]
[360515452,1746826247049,-151.0,0.000105,2]
[360515453,1746826247059,-151.0,0.000105,2]
[360515454,1746826247070,-153.667033,0.000105,2]
[360515455,1746826247079,-151.0,0.000105,2]
[360515456,1746826247088,-317.608346,0.000105,2]
[360515457,1746826247098,-317.608346,0.000105,2]
[360515458,1746826247107,-317.608346,0.000105,2]
[360515459,1746826247117,-317.608346,0.000105,2]
[360515460,1746826247127,-317.608346,0.000105,2]
[360515461,1746826247138,-317.608346,0.000105,2]
[360515462,1746826247147,-317.608346,0.000105,2]
[360515463,1746826247157,-317.608346,0.000105,2]
[360515464,1746826247166,-317.608346,0.000105,2]
[360515465,1746826247176,-317.608346,0.000105,2]
[360515466,1746826247185,-317.608346,0.000105,2]
[360515467,1746826247194,-317.608346,0.000105,2]
[360515468,1746826247203,-156.447386,0.000105,2]
[360515469,1746826247213,-151.0,0.000105,2]
[360515470,1746826247222,-151.0,0.000105,2]
[360515471,1746826247231,-151.0,0.000105,2]
[360515472,1746826247240,-151.0,0.000105,2]
[360515473,1746826247337,-286.071071,0.000105,2]
[360515474,1746826247347,-151.0,0.000105,2]
[360515475,1746826247366,-151.0,0.000105,2]
[360515476,1746826247378,-267.978788,0.000105,2]
[360515477,1746826247388,-223.397646,0.000105,2]
[360515478,1746826247398,-151.0,0.000105,2]
[360515479,1746826247409,-205.604604,0.000105,2]
[360515480,1746826247419,-151.0,0.000105,2]
[360515481,1746826247428,-151.0,0.000105,2]
[360515482,1746826247438,-151.0,0.000105,2]
[360515483,1746826247448,-151.0,0.000105,2]
[360515484,1746826247458,-151.0,0.000105,2]
[360515485,1746826247468,-151.0,0.000105,2]
[360515486,1746826247478,-18410.84045316,0.000105,2]
[360515487,1746826247488,-18410.8404529,0.000105,2]
[360515488,1746826247498,-18410.8404529,0.000105,2]
[360515489,1746826247508,-18410.8404529,0.000105,2]
[360515490,1746826247518,-18410.8404529,0.000105,2]
[360515491,1746826247528,-18410.8404529,0.000105,2]
[360515492,1746826247538,-151.0,0.000105,2]
[360515493,1746826247548,-151.0,0.000105,2]
[360515494,1746826247558,-151.0,0.000105,2]
[360515495,1746826247567,-151.0,0.000105,2]
[360515496,1746826247578,-151.0,0.000105,2]
[360515497,1746826247588,-151.0,0.000105,2]
[360515498,1746826247600,-652.39360406,0.00010508,2]
[360515499,1746826247610,-160.0,0.00010555,2]
[360515500,1746826247620,-317.608346,0.00010586,2]
[360515501,1746826247630,-317.608346,0.00010586,2]
[360515502,1746826247641,-151.0,0.00010586,2]
[360515503,1746826247651,-5914.56137842,0.00010586,2]
[360515977,1746826331568,-300.0,8.981e-05,2]
[360515978,1746826331604,-500.0,8.982e-05,2]
[360515979,1746826331641,-500.0,8.982e-05,2]
[360515980,1746826331680,-500.0,8.982e-05,2]
[360515981,1746826331717,-500.0,8.982e-05,2]
[360515982,1746826331754,-500.0,8.982e-05,2]
[360515983,1746826331789,-500.0,8.982e-05,2]
[360515984,1746826331824,-500.0,8.982e-05,2]
[360515985,1746826331859,-500.0,8.982e-05,2]
[360515986,1746826331894,-500.0,8.982e-05,2]
[360515987,1746826331929,-500.0,8.982e-05,2]
[360515988,1746826331964,-500.0,8.982e-05,2]
[360515989,1746826331997,-500.0,8.982e-05,2]
[360515990,1746826332030,-500.0,8.982e-05,2]
[360515991,1746826332062,-500.0,8.982e-05,2]
[360515992,1746826332094,-500.0,8.982e-05,2]
[360515993,1746826332124,-500.0,8.982e-05,2]
[360515994,1746826332155,-500.0,8.982e-05,2]
[360515995,1746826332186,-500.0,8.982e-05,2]
[360515996,1746826332217,-500.0,8.982e-05,2]
[360515997,1746826332248,-500.0,8.982e-05,2]
[360515998,1746826332279,-500.0,8.982e-05,2]
[360515999,1746826332312,-500.0,8.982e-05,2]
[360516000,1746826332344,-500.0,8.982e-05,2]
[360516001,1746826332375,-500.0,8.982e-05,2]
[360516002,1746826332408,-500.0,8.982e-05,2]
[360516003,1746826332438,-500.0,8.982e-05,2]
[360516004,1746826332470,-500.0,8.982e-05,2]
[360516005,1746826332501,-500.0,8.982e-05,2]
[360516006,1746826332532,-500.0,8.982e-05,2]
[360516007,1746826332565,-500.0,8.982e-05,2]
[360516008,1746826332597,-500.0,8.982e-05,2]
[360516009,1746826332632,-500.0,8.982e-05,2]
[360516010,1746826332668,-500.0,8.982e-05,2]
[360516011,1746826332701,-500.0,8.982e-05,2]
[360516012,1746826332734,-500.0,8.982e-05,2]
[360516013,1746826332766,-500.0,8.982e-05,2]
[360516014,1746826332799,-500.0,8.982e-05,2]
[360516015,1746826332831,-500.0,8.982e-05,2]
[360516016,1746826332863,-500.0,8.982e-05,2]
[360516017,1746826332895,-500.0,8.982e-05,2]
[360516018,1746826332927,-500.0,8.982e-05,2]
[360516019,1746826332956,-500.0,8.982e-05,2]
[360516020,1746826332987,-500.0,8.982e-05,2]
[360516021,1746826333018,-500.0,8.982e-05,2]
[360516022,1746826333049,-500.0,8.982e-05,2]
[360516023,1746826333182,-248.54542282,8.982e-05,2]
[360516024,1746826333225,-500.0,8.982e-05,2]
[360516025,1746826333258,-500.0,8.982e-05,2]
[360516026,1746826333290,-500.0,8.982e-05,2]
[360516027,1746826333322,-500.0,8.982e-05,2]
[360516028,1746826333354,-500.0,8.982e-05,2]
[360516029,1746826333386,-474.85454228,8.982e-05,2]
[360516030,1746826333418,-348.6000349,8.982e-05,2]
[360516031,1746826398745,-300.0,9.244e-05,2]
[360516032,1746826398782,-500.0,9.245e-05,2]
[360516033,1746826398816,-500.0,9.245e-05,2]
[360516034,1746826398848,-500.0,9.245e-05,2]
[360516035,1746826398880,-428.02824758,9.245e-05,2]
[360516036,1746826398912,-500.0,9.245e-05,2]
[360516037,1746826398944,-500.0,9.245e-05,2]
[360516038,1746826398975,-500.0,9.245e-05,2]
[360516039,1746826399005,-500.0,9.245e-05,2]
[360516040,1746826399035,-500.0,9.245e-05,2]
[360516041,1746826399064,-500.0,9.245e-05,2]
[360516042,1746826399095,-500.0,9.245e-05,2]
[360516043,1746826399125,-500.0,9.245e-05,2]
[360516044,1746826399153,-500.0,9.245e-05,2]
[360516045,1746826399182,-500.0,9.245e-05,2]
[360516046,1746826399212,-500.0,9.245e-05,2]
[360516047,1746826399234,-151.0,9.246e-05,2]
[360516048,1746826399256,-151.0,9.246e-05,2]
[360516049,1746826399396,-151.0,9.246e-05,2]
[360516050,1746826399419,-322.056929,9.246e-05,2]
[360516051,1746826399441,-322.056929,9.246e-05,2]
[360516052,1746826399464,-420.0,0.00010168,2]
[360516053,1746826399485,-404.0,0.00010397,2]
[360516054,1746826399507,-151.0,0.000105,2]
[360516055,1746826399529,-151.0,0.000105,2]
[360516056,1746826399551,-173.3040996,0.000105,2]
[360516057,1746826399572,-322.056929,0.000105,2]
[360516058,1746826399594,-322.056929,0.000105,2]
[360516059,1746826399616,-322.056929,0.000105,2]
[360516060,1746826399639,-322.056929,0.000105,2]
[360516061,1746826399663,-322.056929,0.000105,2]
[360516062,1746826399685,-236.26914982,0.000105,2]
[360516063,1746826539347,-300.0,9.243e-05,2]
[360516064,1746826539384,-500.0,9.244e-05,2]
[360516065,1746826539414,-500.0,9.244e-05,2]
[360516066,1746826539447,-500.0,9.244e-05,2]
[360516067,1746826539483,-542.80282475,9.244e-05,2]
[360516068,1746826539515,-500.0,9.244e-05,2]
[360516069,1746826539548,-500.0,9.244e-05,2]
[360516070,1746826539581,-500.0,9.244e-05,2]
[360516071,1746826539614,-500.0,9.244e-05,2]
[360516072,1746826539647,-500.0,9.244e-05,2]
[360516073,1746826539681,-500.0,9.244e-05,2]
[360516074,1746826539720,-500.0,9.244e-05,2]
[360516075,1746826539752,-500.0,9.244e-05,2]
[360516076,1746826539787,-500.0,9.244e-05,2]
[360516077,1746826539808,-209.19717525,0.00010167,2]
[360516078,1746826616149,-500.78657556,9.243e-05,2]
[360516079,1746826616176,-500.0,9.243e-05,2]
[360516080,1746826616197,-499.24227669,9.243e-05,2]
[360516081,1746826616219,-500.0,9.243e-05,2]
[360516082,1746826616240,-500.0,9.243e-05,2]
[360516083,1746826616276,-500.0,9.243e-05,2]
[360516084,1746826616300,-164.87764345,9.243e-05,2]
[360516085,1746826616322,-500.0,9.243e-05,2]
[360516086,1746826616365,-500.0,9.243e-05,2]
[360516087,1746826616385,-374.0935043,0.00010397,2]
[360516088,1746826686104,-500.0,9.243e-05,2]
[360516098,1746827214136,-163.59994443,0.00010393,2]
[360516099,1746827214177,-336.40005557,0.00010397,2]
[360516139,1746827432376,-516.99208215,0.0001049,2]
[360516147,1746827432889,-386.18792305,0.0001049,2]
[360516148,1746827432899,-165.44626554,0.0001049,2]
[360516149,1746827432909,-300.0,0.0001049,2]
[360516150,1746827432918,-300.0,0.0001049,2]
[360516151,1746827432928,-270.0,0.0001049,2]
[360516152,1746827432941,-1200.0,0.0001049,2]